{"text_format":"1","workbook":"xlsx","n_sheets":1,"sheets":["2022-2023"],"not_rendered":{"charts":0,"images":0,"macros":1,"external_links":0,"defined_names":1,"comments":0,"pivot_tables":0},"unopened":[],"bounds":{"document_bytes":16777216,"sheet_cells":100000,"rows_first":2000,"rows_last":500,"rows_between":2000,"halvings":0,"cell_chars":16384,"cell_head_chars":4096},"cells_cut":0,"cells_raw":0,"read":"whole","date_system":"1900"}

{"sheet":"2022-2023","index":0,"n_rows":52,"n_cols":72,"rows_kept":52,"cut":false,"hidden":false,"merged":[[8,43,8,52],[8,57,8,65],[10,63,13,63],[10,64,13,64],[10,65,13,65],[10,51,13,51],[9,43,9,45],[9,46,9,48],[10,47,13,47],[10,48,13,48],[9,63,9,65],[9,60,9,62],[10,57,13,57],[10,58,13,58],[10,59,13,59],[10,60,13,60],[10,61,13,61],[10,62,13,62],[10,29,13,29],[10,27,13,27],[12,23,13,23],[10,40,13,40],[10,41,13,41],[10,30,11,31],[10,32,11,33],[12,30,13,30],[12,31,13,31],[12,32,13,32],[12,33,13,33],[10,25,11,26],[10,23,11,24],[10,28,13,28],[9,57,9,59],[10,52,13,52],[10,43,13,43],[10,44,13,44],[10,45,13,45],[10,46,13,46],[10,49,13,49],[10,50,13,50],[9,49,9,52],[10,0,13,0],[11,15,11,18],[12,17,12,18],[11,7,12,8],[10,3,13,3],[10,4,10,10],[11,6,13,6],[11,5,13,5],[11,4,13,4],[11,9,12,10],[11,11,11,14],[8,0,8,29],[10,39,13,39],[10,11,10,18],[12,15,12,16],[10,19,13,19],[10,20,12,21],[10,38,13,38],[12,13,12,14],[12,11,12,12],[12,37,13,37],[10,34,11,35],[10,36,11,37],[12,34,13,34],[10,1,11,2],[12,2,13,2],[12,1,13,1],[12,35,13,35],[12,36,13,36],[10,22,13,22],[12,26,13,26],[12,25,13,25],[12,24,13,24]]}
[null,null,null,null,null,null,null,null,null,null,null,null,null,null,null,null,null,null,null,null,null,null,null,null,null,null,null,null,null,null,null,null,null,null,null,null,null,null,null,null,null,null,null,null,null,null,null,null,null,null,null,null,null,null,null,null,null,null,null,null,null,null,null,null,null,null,null,null,null,null,"Data","Sarbatoare legala"]
[null,null,null,null,null,null,null,null,null,null,null,null,null,null,null,null,null,null,null,null,null,null,null,null,null,null,null,null,null,null,null,null,null,null,null,null,null,null,null,null,null,null,null,null,null,null,null,null,null,null,null,null,null,null,null,null,null,null,null,null,null,null,null,null,null,null,null,null,null,null,"2022-11-30","Sf Andrei"]
[null,null,null,null,null,null,null,null,null,null,null,null,null,null,null,null,null,null,null,null,null,null,null,null,null,null,null,null,null,null,null,null,null,null,null,null,null,null,null,null,null,null,null,null,null,null,null,null,null,null,null,null,null,null,null,null,null,null,null,null,null,null,null,null,null,null,null,null,null,null,"2022-12-01","Ziua Nationala"]
[null,null,null,null,null,null,null,null,null,null,null,null,null,null,null,null,null,null,null,null,null,null,null,null,null,null,null,null,null,null,null,null,null,null,null,null,null,null,null,null,null,null,null,null,null,null,null,null,null,null,null,null,null,null,null,null,null,null,null,null,null,null,null,null,null,null,null,null,null,null,"2022-12-26","Crăciun prima zi"]
[null,null,null,null,null,null,null,null,null,null,null,null,null,null,null,null,null,null,null,null,null,null,null,null,null,null,null,null,null,null,null,null,null,null,null,null,null,null,null,null,null,null,null,null,null,null,null,null,null,null,null,null,null,null,null,null,null,null,null,null,null,null,null,null,null,null,null,null,null,null,"2023-01-02","Anul Nou a doua zi"]
[null,null,null,null,null,null,null,null,null,null,null,null,null,null,null,null,null,null,null,null,null,null,null,null,null,null,null,null,null,null,null,null,null,null,null,null,null,null,null,null,null,null,null,null,null,null,null,null,null,null,null,null,null,null,null,null,null,null,null,null,null,null,null,null,null,null,null,null,null,null,"2023-01-24","Ziua Unirii Principatelor României"]
[null,null,null,null,null,null,null,null,null,null,null,null,null,null,null,null,null,null,null,null,null,null,null,null,null,null,null,null,null,null,null,null,null,null,null,null,null,null,null,null,null,null,null,null,null,null,null,null,null,null,null,null,null,null,null,null,null,null,null,null,null,null,null,null,null,null,null,null,null,null,"2023-04-14","Vinerea Mare"]
[null,null,null,null,null,null,null,null,null,null,null,null,null,null,null,null,null,null,null,null,null,null,null,null,null,null,null,null,null,null,null,null,null,null,null,null,null,null,null,null,null,null,null,null,null,null,null,null,null,null,null,null,null,null,"parteneri adiacenti","UR",null,null,null,null,null,null,null,null,null,null,null,"parteneri adiacenti","UR",null,"2023-04-17","A doua zi de Paste Ortodox"]
["EVIDENȚA LIMITĂRILOR ȘI/SAU ÎNTRERUPERILOR PLANIFICATE ȘI NEPLANIFICATE pentru anul gazier 2022 - 2023 / RECORD OF THE PLANNED AND UNPLANNED LIMITATIONS AND/OR INTERRUPTIONS related to the gas year 2022 - 2023",null,null,null,null,null,null,null,null,null,null,null,null,null,null,null,null,null,null,null,null,null,null,null,null,null,null,null,null,null,null,null,null,null,null,null,null,null,null,null,null,null,null,"Lucrari neprogramate",null,null,null,null,null,null,null,null,null,"NU6 ",{"$f":"SUBTOTAL(9,AS:AS)","v":0},{"$f":"SUBTOTAL(9,AV:AV)","v":0},null,"Lucrari programate",null,null,null,null,null,null,null,null,"NU5",{"$f":"SUBTOTAL(9,BG:BG)","v":0},{"$f":"SUBTOTAL(9,BJ:BJ)","v":0},null,"2023-05-01","Ziua muncii"]
[null,null,null,null,null,null,null,null,null,null,null,null,null,null,null,null,null,null,"EVIDENȚA LIMITĂRILOR ȘI/SAU ÎNTRERUPERILOR PLANIFICATE ȘI NEPLANIFICATE pentru anul gazier 2022 - 2023 / RECORD OF THE PLANNED AND UNPLANNED LIMITATIONS AND/OR INTERRUPTIONS related to the gas year 2022 - 2023",null,null,null,null,null,null,null,null,null,null,null,null,null,null,null,null,null,null,null,null,null,null,null,null,"Partener adiacent",null,null,"UR",null,null,null,null,null,null,"NUafectati ",{"$f":"SUBTOTAL(9,AT:AT)","v":0},{"$f":"SUBTOTAL(9,AW:AW)","v":0},null,"Partener adiacent",null,null,"UR",null,null,null,null,null,"NUafectati ",{"$f":"SUBTOTAL(9,BH:BH)","v":0},{"$f":"SUBTOTAL(9,BK:BK)","v":0},null,"2023-06-01","Ziua copilului"]
["Nr. crt. / Item No.","Tipul limitării/întreruperii / \nType of limitation/interruption",null,"Denumire lucrare/motiv limitare și/sau întrerupere / \nName of the works/reason for the limitation and/or interruption ","Locația limitării/întreruperii / Location of the limitation/interruption ",null,null,null,null,null,null,"Punct de ieșire/intrare afectat / Affected exit/entry point",null,null,null,null,null,null,null,"Cod punct relevant / Code of the relevant point","Utilizator ST afectat / Affected TS user ",null,"Perioada planificată de execuție a lucrării / Planned period for the execution of the works","Data și ora limitării/întreruperii / Date and hour of the limitation/interruption ",null,"Data și ora reluării prestării serviciului / Date and hour the service supply is resumed",null,"Exploatarea Teritorială / Regional Office","Observații / Comments","Justificarea modificării perioadei planificate de execuție a lucrări","Data și ora efectivă de limitare/întrerupere ",null,"Data și ora efectivă de reluare a prestării serviciului",null,"Data și ora informării UR",null,"Data și ora informării partenerului adiacent",null,"Foaia de manevră","A fost afectat producătorul (în cazul PM) sau consumatorul final (în cazul SM)? \n(DA/NU)","Observatii","Program bugetat",null,"Numar de ore de la producerea intreruperii / limitarii pana la anuntarea partenerului adiacent\n (trebuie sa fie mai mic decat 6)","NU6","NUafectati","Numar de ore de la producerea intreruperii / limitarii pana la anuntarea UR\n (trebuie sa fie mai mic decat 6)","NU6","NUafectati","Durata intreruperii / limitarii [ore]\n(daca este mai mare de 24, trebuie sa fie completata celula aferenta de pe coloana AZ)","NU24","Nuafectati","Partener adiacent informat din 12 in 12 ore, daca durata mai mare de 24h\n(DA/NU)","NU6 ",{"$f":"BC9+BD9","v":0},"IP51",null,"Numar de zile lucratoare de anuntare partener adiacent pana la limitare / intrerupere (trebuie sa fie mai mare de 5)","NU5","NUafectati","Numar de zile de anuntare UR pana la limitare / intrerupere \n(trebuie sa fie mai mare de 5)","NU5","NUafectati","Numar ore intre data anuntata si cea efectiva de reluare\n(trebuie sa fie mai mic sau egal cu 0)","NUreluate","NUafectati","NU5",{"$f":"BP9+BQ9","v":0},"IP61",null,"2023-06-05","A doua zi de Rusalii"]
[null,null,null,null,"Siruta / Siruta code","Localitate / Locality","Județ / County","Coordonate GPS început / GPS coordinates-beginning",null,"Coordonate GPS sfârșit / GPS coordinates-end",null,"Puncte de ieșire din SNT / NTS exit points",null,null,null,"Puncte de intrare în SNT / NTS entry points ",null,null,null,null,null,null,null,null,null,null,null,null,null,null,null,null,null,null,null,null,null,null,null,null,null,null,null,null,null,null,null,null,null,null,null,null,null,"NUafectati ",{"$f":"BC10+BD10","v":0},{"$f":"IF(BC12=0,1,BC11/BC12)","v":1},null,null,null,null,null,null,null,null,null,null,"NUafectati ",{"$f":"BP10+BQ10","v":0},{"$f":"IF(BP12=0,1,BP11/BP12)","v":1},null,"2023-08-15","Adormirea Maicii Domnului"]
[null,"Neplanificată / Unplanned","Planificată / Planned",null,null,null,null,null,null,null,null,"Limitare / Limitation",null,"Întrerupere / Interruption",null,"Limitare / Limitation",null,"Întrerupere / Interruption",null,null,null,null,null,"Data / Date","Ora / Hour","Data / Date","Ora / Hour",null,null,null,"Data","Ora","Data","Ora","Data","Ora","Data","Ora",null,null,null,null,null,null,null,null,null,null,null,null,null,null,null,"NU24",{"$f":"SUBTOTAL(9,AY:AY)","v":0},"IP52",null,null,null,null,null,null,null,null,null,null,"NUreluare",{"$f":"SUBTOTAL(9,BM:BM)","v":0},"IP62"]
[null,null,null,null,null,null,null,"X1","Y1","X2","Y2","Cod / Code","Denumire / Name","Cod / Code","Denumire / Name","Cod / Code","Denumire / Name","Cod / Code","Denumire / Name",null,"Utilizator de rețea / Network User","Partener adiacent / Adjacent Partner",null,null,null,null,null,null,null,null,null,null,null,null,null,null,null,null,null,null,null,null,null,null,null,null,null,null,null,null,null,null,null,"NUafectati",{"$f":"SUBTOTAL(9,AZ:AZ)","v":0},{"$f":"IF(BC14=0,1,BC13/BC14)","v":1},null,null,null,null,null,null,null,null,null,null,"NUafectati",{"$f":"SUBTOTAL(9,BN:BN)","v":0},{"$f":"IF(BP14=0,1,BP13/BP14)","v":1}]
[0,1,2,3,4,5,6,7,8,9,10,11,12,13,14,15,16,17,18,19,20,21,22,23,24,25,26,27,28,29,30,31,32,33,34,35,36,37,38,39,40,41]
[{"$f":"A15+1","v":1},"-","x","Relocare și adaptare la teren a instalației tehnologice SRM Poroterom Orăștie pe locația SRM Baru",88001,"Baru","Hunedoara",357044.71,442838.66,357044.71,442838.66,"-","-","SM0314D0","Baru","-","-","-","-","SM-SD001",null,"Delgaz Grid","martie - aprilie 2023",null,null,null,null,"Arad",null,null,null,null,null,null,null,null,null,null,null,null,null,"PMDI 2022_A5_1",null,{"$f":"IF(B16=\"X\",IF(AN16=\"\",\"Afectat sau NU?\",IF(AN16=\"DA\",IF(((AK16+AL16)-(AE16+AF16))*24<-720,\"Neinformat\",((AK16+AL16)-(AE16+AF16))*24),\"Nu a fost afectat producator/consumator\")),\"\")","v":""},{"$f":"IF(B16=\"X\",IF(AN16=\"DA\",IF(AR16<6,LEN(TRIM(V16))-LEN(SUBSTITUTE(V16,CHAR(44),\"\"))+1,0),\"-\"),\"\")","v":""},{"$f":"IF(B16=\"X\",IF(AN16=\"DA\",LEN(TRIM(V16))-LEN(SUBSTITUTE(V16,CHAR(44),\"\"))+1,\"-\"),\"\")","v":""},{"$f":"IF(B16=\"X\",IF(AN16=\"\",\"Afectat sau NU?\",IF(AN16=\"DA\",IF(((AI16+AJ16)-(AE16+AF16))*24<-720,\"Neinformat\",((AI16+AJ16)-(AE16+AF16))*24),\"Nu a fost afectat producator/consumator\")),\"\")","v":""},{"$f":"IF(B16=\"X\",IF(AN16=\"DA\",IF(AU16<6,LEN(TRIM(U16))-LEN(SUBSTITUTE(U16,CHAR(44),\"\"))+1,0),\"-\"),\"\")","v":""},{"$f":"IF(B16=\"X\",IF(AN16=\"DA\",LEN(TRIM(U16))-LEN(SUBSTITUTE(U16,CHAR(44),\"\"))+1,\"-\"),\"\")","v":""},{"$f":"IF(B16=\"X\",IF(AN16=\"\",\"Afectat sau NU?\",IF(AN16=\"DA\",((AG16+AH16)-(AE16+AF16))*24,\"Nu a fost afectat producator/consumator\")),\"\")","v":""},{"$f":"IF(B16=\"X\",IF(AN16=\"DA\",IF(AX16>24,IF(BA16=\"NU\",0,LEN(TRIM(V16))-LEN(SUBSTITUTE(V16,CHAR(44),\"\"))+1),0),\"-\"),\"\")","v":""},{"$f":"IF(B16=\"X\",IF(AN16=\"DA\",IF(AX16>24,LEN(TRIM(V16))-LEN(SUBSTITUTE(V16,CHAR(44),\"\"))+1,0),\"-\"),\"\")","v":""},null,null,null,null,null,{"$f":"IF(C16=\"X\",IF(AN16=\"\",\"Afectat sau NU?\",IF(AN16=\"DA\",IF(AK16=\"\",\"Neinformat\",NETWORKDAYS(AK16+AL16,AE16+AF16,$BS$2:$BS$14)-2),\"Nu a fost afectat producator/consumator\")),\"\")","v":"Afectat sau NU?"},{"$f":"IF(C16=\"X\",IF(AN16=\"DA\",IF(AND(BF16>=5,AK16<>\"\"),LEN(TRIM(V16))-LEN(SUBSTITUTE(V16,CHAR(44),\"\"))+1,0),\"-\"),\"\")","v":"-"},{"$f":"IF(C16=\"X\",IF(AN16=\"DA\",LEN(TRIM(V16))-LEN(SUBSTITUTE(V16,CHAR(44),\"\"))+1,\"-\"),\"\")","v":"-"},{"$f":"IF(C16=\"X\",IF(AN16=\"\",\"Afectat sau NU?\",IF(AN16=\"DA\",IF(AI16=\"\",\"Neinformat\",NETWORKDAYS(AI16+AJ16,AE16+AF16,$BS$2:$BS$14)-2),\"Nu a fost afectat producator/consumator\")),\"\")","v":"Afectat sau NU?"},{"$f":"IF(C16=\"X\",IF(AN16=\"DA\",IF(AND(BI16>=5,AI16<>\"\"),LEN(TRIM(U16))-LEN(SUBSTITUTE(U16,CHAR(44),\"\"))+1,0),\"-\"),\"\")","v":"-"},{"$f":"IF(C16=\"X\",IF(AN16=\"DA\",LEN(TRIM(U16))-LEN(SUBSTITUTE(U16,CHAR(44),\"\"))+1,\"-\"),\"\")","v":"-"},{"$f":"IF(C16=\"X\",IF(AN16=\"\",\"Afectat sau NU?\",IF(AN16=\"DA\",((AG16+AH16)-(Z16+AA16))*24,\"Nu a fost afectat producator/consumator\")),\"\")","v":"Afectat sau NU?"},{"$f":"IF(C16=\"X\",IF(AN16<>\"DA\",\"-\",IF(AND(AN16=\"DA\",BL16<=0),LEN(TRIM(V16))-LEN(SUBSTITUTE(V16,CHAR(44),\"\"))+1+LEN(TRIM(U16))-LEN(SUBSTITUTE(U16,CHAR(44),\"\"))+1,0)),\"\")","v":"-"},{"$f":"IF(C16=\"X\",IF(AN16=\"DA\",LEN(TRIM(V16))-LEN(SUBSTITUTE(V16,CHAR(44),\"\"))+1+LEN(TRIM(U16))-LEN(SUBSTITUTE(U16,CHAR(44),\"\"))+1,\"-\"),\"\")","v":"-"}]
[2,"-","x","Punere în siguranță a conductei 12” Agârbiciu - Sibiu, zona Șeica Mare",145676,"Șeica Mare","Sibiu",434864.28,502349.67,434864.28,502349.67,"-","-","SM0737D0","Șeica Mare","-","-","-","-","SM-SD001",null,"Delgaz Grid","martie - aprilie 2023",null,null,null,null,"Mediaș",null,null,null,null,null,null,null,null,null,null,null,null,null,"PMDI_2022_A9_7",null,"","","","","","","","","",null,null,null,null,null,"Afectat sau NU?","-","-","Afectat sau NU?","-","-","Afectat sau NU?","-","-"]
[{"$f":"A17+1","v":3},"-","x","Punere în siguranță a conductei 8” Cornățel - Avrig, zona Avrig",144090,"Mârșa","Sibiu",451489.67,466968.99,451489.67,466968.99,"-","-","SM0819D1","Mârșa","-","-","-","-","SM-SD001",null,"Delgaz Grid","martie - aprilie 2023",null,null,null,null,"Mediaș",null,null,null,null,null,null,null,null,null,null,null,null,null,"PMDI_2022_A9_3",null,"","","","","","","","","",null,null,null,null,null,"Afectat sau NU?","-","-","Afectat sau NU?","-","-","Afectat sau NU?","-","-"]
[4,"-","x","Punere în siguranță a conductei 8” Cornățel - Avrig, zona Avrig",145364,"Racovița","Sibiu",448491.14,465243.62,448491.14,465243.62,"-","-","SM0876D0","Racovița","-","-","-","-","SM-SD001",null,"Delgaz Grid","martie - aprilie 2023",null,null,null,null,"Mediaș",null,null,null,null,null,null,null,null,null,null,null,null,null,"PMDI_2022_A9_3",null,"","","","","","","","","",null,null,null,null,null,"Afectat sau NU?","-","-","Afectat sau NU?","-","-","Afectat sau NU?","-","-"]
[5,"-","x","Punere în siguranță a conductei 8” Cornățel - Avrig, zona Avrig",145373,"Sebeșu de Sus","Sibiu",449528.49,462452.81,449528.49,462452.81,"-","-","SM0903D0","Sebeșu de Sus","-","-","-","-","SM-SD001",null,"Delgaz Grid","martie - aprilie 2023",null,null,null,null,"Mediaș",null,null,null,null,null,null,null,null,null,null,null,null,null,"PMDI_2022_A9_3",null,"","","","","","","","","",null,null,null,null,null,"Afectat sau NU?","-","-","Afectat sau NU?","-","-","Afectat sau NU?","-","-"]
[6,"-","x","Punere în siguranță a conductei 8” Cornățel - Avrig, zona Avrig",145952,"Sebeșu de Jos","Sibiu",448296.46,461833.47,448296.46,461833.47,"-","-","SM1041D0","Sebeșu de Jos","-","-","-","-","SM-SD001",null,"Delgaz Grid","martie - aprilie 2023",null,null,null,null,"Mediaș",null,null,null,null,null,null,null,null,null,null,null,null,null,"PMDI_2022_A9_3",null,"","","","","","","","","",null,null,null,null,null,"Afectat sau NU?","-","-","Afectat sau NU?","-","-","Afectat sau NU?","-","-"]
[7,"-","x","Punere în siguranță a conductei 8” Cornățel - Avrig, zona Avrig",145943,"Turnu Roșu","Sibiu",445948.45,460774.96,445948.45,460774.96,"-","-","SM0805D0","Turnu Roșu","-","-","-","-","SM-SD001",null,"Delgaz Grid","martie - aprilie 2023",null,null,null,null,"Mediaș",null,null,null,null,null,null,null,null,null,null,null,null,null,"PMDI_2022_A9_3",null,"","","","","","","","","",null,null,null,null,null,"Afectat sau NU?","-","-","Afectat sau NU?","-","-","Afectat sau NU?","-","-"]
[{"$f":"A22+1","v":8},"-","x","SRM Moinești I (Dealu Mare) racordare la SNTGN respectiv la Sistemul de distribuție gaze naturale",20885,"Moinești","Bacău",613113.21,553437.6,613113.21,553437.6,"-","-","SM0440D0","Moinești I Dealu Mare","-","-","-","-","SM-SD001",null,"Delgaz Grid","martie - aprilie 2023",null,null,null,null,"Bacău",null,null,null,null,null,null,null,null,null,null,null,null,null,"PMDI_2022_A5_13",null,{"$f":"IF(B23=\"X\",IF(AN23=\"\",\"Afectat sau NU?\",IF(AN23=\"DA\",IF(((AK23+AL23)-(AE23+AF23))*24<-720,\"Neinformat\",((AK23+AL23)-(AE23+AF23))*24),\"Nu a fost afectat producator/consumator\")),\"\")","v":""},{"$f":"IF(B23=\"X\",IF(AN23=\"DA\",IF(AR23<6,LEN(TRIM(V23))-LEN(SUBSTITUTE(V23,CHAR(44),\"\"))+1,0),\"-\"),\"\")","v":""},{"$f":"IF(B23=\"X\",IF(AN23=\"DA\",LEN(TRIM(V23))-LEN(SUBSTITUTE(V23,CHAR(44),\"\"))+1,\"-\"),\"\")","v":""},{"$f":"IF(B23=\"X\",IF(AN23=\"\",\"Afectat sau NU?\",IF(AN23=\"DA\",IF(((AI23+AJ23)-(AE23+AF23))*24<-720,\"Neinformat\",((AI23+AJ23)-(AE23+AF23))*24),\"Nu a fost afectat producator/consumator\")),\"\")","v":""},{"$f":"IF(B23=\"X\",IF(AN23=\"DA\",IF(AU23<6,LEN(TRIM(U23))-LEN(SUBSTITUTE(U23,CHAR(44),\"\"))+1,0),\"-\"),\"\")","v":""},{"$f":"IF(B23=\"X\",IF(AN23=\"DA\",LEN(TRIM(U23))-LEN(SUBSTITUTE(U23,CHAR(44),\"\"))+1,\"-\"),\"\")","v":""},{"$f":"IF(B23=\"X\",IF(AN23=\"\",\"Afectat sau NU?\",IF(AN23=\"DA\",((AG23+AH23)-(AE23+AF23))*24,\"Nu a fost afectat producator/consumator\")),\"\")","v":""},{"$f":"IF(B23=\"X\",IF(AN23=\"DA\",IF(AX23>24,IF(BA23=\"NU\",0,LEN(TRIM(V23))-LEN(SUBSTITUTE(V23,CHAR(44),\"\"))+1),0),\"-\"),\"\")","v":""},{"$f":"IF(B23=\"X\",IF(AN23=\"DA\",IF(AX23>24,LEN(TRIM(V23))-LEN(SUBSTITUTE(V23,CHAR(44),\"\"))+1,0),\"-\"),\"\")","v":""},null,null,null,null,null,{"$f":"IF(C23=\"X\",IF(AN23=\"\",\"Afectat sau NU?\",IF(AN23=\"DA\",IF(AK23=\"\",\"Neinformat\",NETWORKDAYS(AK23+AL23,AE23+AF23,$BS$2:$BS$14)-2),\"Nu a fost afectat producator/consumator\")),\"\")","v":"Afectat sau NU?"},{"$f":"IF(C23=\"X\",IF(AN23=\"DA\",IF(AND(BF23>=5,AK23<>\"\"),LEN(TRIM(V23))-LEN(SUBSTITUTE(V23,CHAR(44),\"\"))+1,0),\"-\"),\"\")","v":"-"},{"$f":"IF(C23=\"X\",IF(AN23=\"DA\",LEN(TRIM(V23))-LEN(SUBSTITUTE(V23,CHAR(44),\"\"))+1,\"-\"),\"\")","v":"-"},{"$f":"IF(C23=\"X\",IF(AN23=\"\",\"Afectat sau NU?\",IF(AN23=\"DA\",IF(AI23=\"\",\"Neinformat\",NETWORKDAYS(AI23+AJ23,AE23+AF23,$BS$2:$BS$14)-2),\"Nu a fost afectat producator/consumator\")),\"\")","v":"Afectat sau NU?"},{"$f":"IF(C23=\"X\",IF(AN23=\"DA\",IF(AND(BI23>=5,AI23<>\"\"),LEN(TRIM(U23))-LEN(SUBSTITUTE(U23,CHAR(44),\"\"))+1,0),\"-\"),\"\")","v":"-"},{"$f":"IF(C23=\"X\",IF(AN23=\"DA\",LEN(TRIM(U23))-LEN(SUBSTITUTE(U23,CHAR(44),\"\"))+1,\"-\"),\"\")","v":"-"},{"$f":"IF(C23=\"X\",IF(AN23=\"\",\"Afectat sau NU?\",IF(AN23=\"DA\",((AG23+AH23)-(Z23+AA23))*24,\"Nu a fost afectat producator/consumator\")),\"\")","v":"Afectat sau NU?"},{"$f":"IF(C23=\"X\",IF(AN23<>\"DA\",\"-\",IF(AND(AN23=\"DA\",BL23<=0),LEN(TRIM(V23))-LEN(SUBSTITUTE(V23,CHAR(44),\"\"))+1+LEN(TRIM(U23))-LEN(SUBSTITUTE(U23,CHAR(44),\"\"))+1,0)),\"\")","v":"-"},{"$f":"IF(C23=\"X\",IF(AN23=\"DA\",LEN(TRIM(V23))-LEN(SUBSTITUTE(V23,CHAR(44),\"\"))+1+LEN(TRIM(U23))-LEN(SUBSTITUTE(U23,CHAR(44),\"\"))+1,\"-\"),\"\")","v":"-"}]
[{"$f":"A23+1","v":9},"-","x","SRM Moinești I (Dealu Mare) racordare la SNTGN respectiv la Sistemul de distribuție gaze naturale",20885,"Moinești","Bacău",612206.31999999995,550311.31999999995,612206.31999999995,550311.31999999995,"-","-","SM0437D0","Moinești II Văsâiești","-","-","-","-","SM-SD001",null,"Delgaz Grid","martie - aprilie 2023",null,null,null,null,"Bacău",null,null,null,null,null,null,null,null,null,null,null,null,null,"PMDI_2022_A5_13",null,{"$f":"IF(B24=\"X\",IF(AN24=\"\",\"Afectat sau NU?\",IF(AN24=\"DA\",IF(((AK24+AL24)-(AE24+AF24))*24<-720,\"Neinformat\",((AK24+AL24)-(AE24+AF24))*24),\"Nu a fost afectat producator/consumator\")),\"\")","v":""},{"$f":"IF(B24=\"X\",IF(AN24=\"DA\",IF(AR24<6,LEN(TRIM(V24))-LEN(SUBSTITUTE(V24,CHAR(44),\"\"))+1,0),\"-\"),\"\")","v":""},{"$f":"IF(B24=\"X\",IF(AN24=\"DA\",LEN(TRIM(V24))-LEN(SUBSTITUTE(V24,CHAR(44),\"\"))+1,\"-\"),\"\")","v":""},{"$f":"IF(B24=\"X\",IF(AN24=\"\",\"Afectat sau NU?\",IF(AN24=\"DA\",IF(((AI24+AJ24)-(AE24+AF24))*24<-720,\"Neinformat\",((AI24+AJ24)-(AE24+AF24))*24),\"Nu a fost afectat producator/consumator\")),\"\")","v":""},{"$f":"IF(B24=\"X\",IF(AN24=\"DA\",IF(AU24<6,LEN(TRIM(U24))-LEN(SUBSTITUTE(U24,CHAR(44),\"\"))+1,0),\"-\"),\"\")","v":""},{"$f":"IF(B24=\"X\",IF(AN24=\"DA\",LEN(TRIM(U24))-LEN(SUBSTITUTE(U24,CHAR(44),\"\"))+1,\"-\"),\"\")","v":""},{"$f":"IF(B24=\"X\",IF(AN24=\"\",\"Afectat sau NU?\",IF(AN24=\"DA\",((AG24+AH24)-(AE24+AF24))*24,\"Nu a fost afectat producator/consumator\")),\"\")","v":""},{"$f":"IF(B24=\"X\",IF(AN24=\"DA\",IF(AX24>24,IF(BA24=\"NU\",0,LEN(TRIM(V24))-LEN(SUBSTITUTE(V24,CHAR(44),\"\"))+1),0),\"-\"),\"\")","v":""},{"$f":"IF(B24=\"X\",IF(AN24=\"DA\",IF(AX24>24,LEN(TRIM(V24))-LEN(SUBSTITUTE(V24,CHAR(44),\"\"))+1,0),\"-\"),\"\")","v":""},null,null,null,null,null,{"$f":"IF(C24=\"X\",IF(AN24=\"\",\"Afectat sau NU?\",IF(AN24=\"DA\",IF(AK24=\"\",\"Neinformat\",NETWORKDAYS(AK24+AL24,AE24+AF24,$BS$2:$BS$14)-2),\"Nu a fost afectat producator/consumator\")),\"\")","v":"Afectat sau NU?"},{"$f":"IF(C24=\"X\",IF(AN24=\"DA\",IF(AND(BF24>=5,AK24<>\"\"),LEN(TRIM(V24))-LEN(SUBSTITUTE(V24,CHAR(44),\"\"))+1,0),\"-\"),\"\")","v":"-"},{"$f":"IF(C24=\"X\",IF(AN24=\"DA\",LEN(TRIM(V24))-LEN(SUBSTITUTE(V24,CHAR(44),\"\"))+1,\"-\"),\"\")","v":"-"},{"$f":"IF(C24=\"X\",IF(AN24=\"\",\"Afectat sau NU?\",IF(AN24=\"DA\",IF(AI24=\"\",\"Neinformat\",NETWORKDAYS(AI24+AJ24,AE24+AF24,$BS$2:$BS$14)-2),\"Nu a fost afectat producator/consumator\")),\"\")","v":"Afectat sau NU?"},{"$f":"IF(C24=\"X\",IF(AN24=\"DA\",IF(AND(BI24>=5,AI24<>\"\"),LEN(TRIM(U24))-LEN(SUBSTITUTE(U24,CHAR(44),\"\"))+1,0),\"-\"),\"\")","v":"-"},{"$f":"IF(C24=\"X\",IF(AN24=\"DA\",LEN(TRIM(U24))-LEN(SUBSTITUTE(U24,CHAR(44),\"\"))+1,\"-\"),\"\")","v":"-"},{"$f":"IF(C24=\"X\",IF(AN24=\"\",\"Afectat sau NU?\",IF(AN24=\"DA\",((AG24+AH24)-(Z24+AA24))*24,\"Nu a fost afectat producator/consumator\")),\"\")","v":"Afectat sau NU?"},{"$f":"IF(C24=\"X\",IF(AN24<>\"DA\",\"-\",IF(AND(AN24=\"DA\",BL24<=0),LEN(TRIM(V24))-LEN(SUBSTITUTE(V24,CHAR(44),\"\"))+1+LEN(TRIM(U24))-LEN(SUBSTITUTE(U24,CHAR(44),\"\"))+1,0)),\"\")","v":"-"},{"$f":"IF(C24=\"X\",IF(AN24=\"DA\",LEN(TRIM(V24))-LEN(SUBSTITUTE(V24,CHAR(44),\"\"))+1+LEN(TRIM(U24))-LEN(SUBSTITUTE(U24,CHAR(44),\"\"))+1,\"-\"),\"\")","v":"-"}]
[10,"-","x","Modernizare Instalație Tehnologică SRMP Arad I",9271,"Arad","Arad",216711.59,524249.53,216711.59,524249.53,"-","-","SM0349D0","Arad I","-","-","-","-","SM-SD001",null,"Delgaz Grid","octombrie - decembrie 2022",null,null,null,null,"Arad",null,null,null,null,null,null,null,null,null,null,null,null,null,"PMDI_2022_A5_14",null,"","","","","","","","","",null,null,null,null,null,"Afectat sau NU?","-","-","Afectat sau NU?","-","-","Afectat sau NU?","-","-"]
[11,"-","x","Conducta de transport gaze naturale Sighetu Marmației - Borșa",106398,"Sărăsău","Maramureș",412768.47,716349.94,412768.47,716349.94,"-","-","SM0992D0","Sighetu Marmației","-","-","-","-","SM-SD001",null,"Berg Sistem Gaz","octombrie - decembrie 2022",null,null,null,null,"Cluj",null,null,null,null,null,null,null,null,null,null,null,null,null,"PMDI_2022_A17_5",null,"","","","","","","","","",null,null,null,null,null,"Afectat sau NU?","-","-","Afectat sau NU?","-","-","Afectat sau NU?","-","-"]
[12,"-","x","Conducta de transport gaze naturale SRM Timișoara I – SRM Timișoara III (inclusiv alimentare cu energie electrică, protecție catodică și fibră optică)",157013,"Foeni","Timiș",175362.53,453811.08,175362.53,453811.08,"-","-","SM1143D0","Foeni-Petrom","-","-","-","-","SM-CD001",null,"Petrom","aprilie - iunie 2023",null,null,null,null,"Arad",null,null,null,null,null,null,null,null,null,null,null,null,null,"PMDI_2022_A3_8",null,{"$f":"IF(B27=\"X\",IF(AN27=\"\",\"Afectat sau NU?\",IF(AN27=\"DA\",IF(((AK27+AL27)-(AE27+AF27))*24<-720,\"Neinformat\",((AK27+AL27)-(AE27+AF27))*24),\"Nu a fost afectat producator/consumator\")),\"\")","v":""},{"$f":"IF(B27=\"X\",IF(AN27=\"DA\",IF(AR27<6,LEN(TRIM(V27))-LEN(SUBSTITUTE(V27,CHAR(44),\"\"))+1,0),\"-\"),\"\")","v":""},{"$f":"IF(B27=\"X\",IF(AN27=\"DA\",LEN(TRIM(V27))-LEN(SUBSTITUTE(V27,CHAR(44),\"\"))+1,\"-\"),\"\")","v":""},{"$f":"IF(B27=\"X\",IF(AN27=\"\",\"Afectat sau NU?\",IF(AN27=\"DA\",IF(((AI27+AJ27)-(AE27+AF27))*24<-720,\"Neinformat\",((AI27+AJ27)-(AE27+AF27))*24),\"Nu a fost afectat producator/consumator\")),\"\")","v":""},{"$f":"IF(B27=\"X\",IF(AN27=\"DA\",IF(AU27<6,LEN(TRIM(U27))-LEN(SUBSTITUTE(U27,CHAR(44),\"\"))+1,0),\"-\"),\"\")","v":""},{"$f":"IF(B27=\"X\",IF(AN27=\"DA\",LEN(TRIM(U27))-LEN(SUBSTITUTE(U27,CHAR(44),\"\"))+1,\"-\"),\"\")","v":""},{"$f":"IF(B27=\"X\",IF(AN27=\"\",\"Afectat sau NU?\",IF(AN27=\"DA\",((AG27+AH27)-(AE27+AF27))*24,\"Nu a fost afectat producator/consumator\")),\"\")","v":""},{"$f":"IF(B27=\"X\",IF(AN27=\"DA\",IF(AX27>24,IF(BA27=\"NU\",0,LEN(TRIM(V27))-LEN(SUBSTITUTE(V27,CHAR(44),\"\"))+1),0),\"-\"),\"\")","v":""},{"$f":"IF(B27=\"X\",IF(AN27=\"DA\",IF(AX27>24,LEN(TRIM(V27))-LEN(SUBSTITUTE(V27,CHAR(44),\"\"))+1,0),\"-\"),\"\")","v":""},null,null,null,null,null,{"$f":"IF(C27=\"X\",IF(AN27=\"\",\"Afectat sau NU?\",IF(AN27=\"DA\",IF(AK27=\"\",\"Neinformat\",NETWORKDAYS(AK27+AL27,AE27+AF27,$BS$2:$BS$14)-2),\"Nu a fost afectat producator/consumator\")),\"\")","v":"Afectat sau NU?"},{"$f":"IF(C27=\"X\",IF(AN27=\"DA\",IF(AND(BF27>=5,AK27<>\"\"),LEN(TRIM(V27))-LEN(SUBSTITUTE(V27,CHAR(44),\"\"))+1,0),\"-\"),\"\")","v":"-"},{"$f":"IF(C27=\"X\",IF(AN27=\"DA\",LEN(TRIM(V27))-LEN(SUBSTITUTE(V27,CHAR(44),\"\"))+1,\"-\"),\"\")","v":"-"},{"$f":"IF(C27=\"X\",IF(AN27=\"\",\"Afectat sau NU?\",IF(AN27=\"DA\",IF(AI27=\"\",\"Neinformat\",NETWORKDAYS(AI27+AJ27,AE27+AF27,$BS$2:$BS$14)-2),\"Nu a fost afectat producator/consumator\")),\"\")","v":"Afectat sau NU?"},{"$f":"IF(C27=\"X\",IF(AN27=\"DA\",IF(AND(BI27>=5,AI27<>\"\"),LEN(TRIM(U27))-LEN(SUBSTITUTE(U27,CHAR(44),\"\"))+1,0),\"-\"),\"\")","v":"-"},{"$f":"IF(C27=\"X\",IF(AN27=\"DA\",LEN(TRIM(U27))-LEN(SUBSTITUTE(U27,CHAR(44),\"\"))+1,\"-\"),\"\")","v":"-"},{"$f":"IF(C27=\"X\",IF(AN27=\"\",\"Afectat sau NU?\",IF(AN27=\"DA\",((AG27+AH27)-(Z27+AA27))*24,\"Nu a fost afectat producator/consumator\")),\"\")","v":"Afectat sau NU?"},{"$f":"IF(C27=\"X\",IF(AN27<>\"DA\",\"-\",IF(AND(AN27=\"DA\",BL27<=0),LEN(TRIM(V27))-LEN(SUBSTITUTE(V27,CHAR(44),\"\"))+1+LEN(TRIM(U27))-LEN(SUBSTITUTE(U27,CHAR(44),\"\"))+1,0)),\"\")","v":"-"},{"$f":"IF(C27=\"X\",IF(AN27=\"DA\",LEN(TRIM(V27))-LEN(SUBSTITUTE(V27,CHAR(44),\"\"))+1+LEN(TRIM(U27))-LEN(SUBSTITUTE(U27,CHAR(44),\"\"))+1,\"-\"),\"\")","v":"-"}]
[13,"-","x","Conducta de transport gaze naturale SRM Timișoara I – SRM Timișoara III (inclusiv alimentare cu energie electrică, protecție catodică și fibră optică)",158788,"Șag","Timiș",200431.79,468711.36,200431.79,468711.36,"-","-","SM0881D0","Șag","-","-","-","-","SM-SD001",null,"Gaz Vest","aprilie - iunie 2023",null,null,null,null,"Arad",null,null,null,null,null,null,null,null,null,null,null,null,null,"PMDI_2022_A3_8",null,"","","","","","","","","",null,null,null,null,null,"Afectat sau NU?","-","-","Afectat sau NU?","-","-","Afectat sau NU?","-","-"]
[14,"-","x","Conducta de transport gaze naturale SRM Timișoara I – SRM Timișoara III (inclusiv alimentare cu energie electrică, protecție catodică și fibră optică)",158074,"Peciu Nou","Timiș",193049.58,463240.68,193049.58,463240.68,"-","-","SM0335D0","Peciu Nou","-","-","-","-","SM-SD001",null,"Gaz Vest","aprilie - iunie 2023",null,null,null,null,"Arad",null,null,null,null,null,null,null,null,null,null,null,null,null,"PMDI_2022_A3_8",null,"","","","","","","","","",null,null,null,null,null,"Afectat sau NU?","-","-","Afectat sau NU?","-","-","Afectat sau NU?","-","-"]
[15,"-","x","Conducta de transport gaze naturale SRM Timișoara I – SRM Timișoara III (inclusiv alimentare cu energie electrică, protecție catodică și fibră optică)",155332,"Chișoda","Timiș",206214.98,473806.07,206214.98,473806.07,"-","-","SM0345D0","Chișoda","-","-","-","-","SM-SD001",null,"Delgaz Grid","aprilie - iunie 2023",null,null,null,null,"Arad",null,null,null,null,null,null,null,null,null,null,null,null,null,"PMDI_2022_A3_8",null,"","","","","","","","","",null,null,null,null,null,"Afectat sau NU?","-","-","Afectat sau NU?","-","-","Afectat sau NU?","-","-"]
[16,"-","x","Conducta de transport gaze naturale SRM Timișoara I – SRM Timișoara III (inclusiv alimentare cu energie electrică, protecție catodică și fibră optică)",155252,"Timișoara","Timiș",203127.23,474111.4,203127.23,474111.4,"-","-","SM0343D0","SC Monlandy`s Timișoara","-","-","-","-","SM-CD001",null,"Monlandys","aprilie - iunie 2023",null,null,null,null,"Arad",null,null,null,null,null,null,null,null,null,null,null,null,null,"PMDI_2022_A3_8",null,"","","","","","","","","",null,null,null,null,null,"Afectat sau NU?","-","-","Afectat sau NU?","-","-","Afectat sau NU?","-","-"]
[17,"-","x","Conducta de transport gaze naturale SRM Timișoara I – SRM Timișoara III (inclusiv alimentare cu energie electrică, protecție catodică și fibră optică)",155252,"Timișoara","Timiș",203448.03,473777.64,203448.03,473777.64,"-","-"," SM0337D0","SC Incontro I Timișoara","-","-","-","-","SM-CD001",null,"Incontro Prefabricați","aprilie - iunie 2023",null,null,null,null,"Arad",null,null,null,null,null,null,null,null,null,null,null,null,null,"PMDI_2022_A3_8",null,{"$f":"IF(B32=\"X\",IF(AN32=\"\",\"Afectat sau NU?\",IF(AN32=\"DA\",IF(((AK32+AL32)-(AE32+AF32))*24<-720,\"Neinformat\",((AK32+AL32)-(AE32+AF32))*24),\"Nu a fost afectat producator/consumator\")),\"\")","v":""},{"$f":"IF(B32=\"X\",IF(AN32=\"DA\",IF(AR32<6,LEN(TRIM(V32))-LEN(SUBSTITUTE(V32,CHAR(44),\"\"))+1,0),\"-\"),\"\")","v":""},{"$f":"IF(B32=\"X\",IF(AN32=\"DA\",LEN(TRIM(V32))-LEN(SUBSTITUTE(V32,CHAR(44),\"\"))+1,\"-\"),\"\")","v":""},{"$f":"IF(B32=\"X\",IF(AN32=\"\",\"Afectat sau NU?\",IF(AN32=\"DA\",IF(((AI32+AJ32)-(AE32+AF32))*24<-720,\"Neinformat\",((AI32+AJ32)-(AE32+AF32))*24),\"Nu a fost afectat producator/consumator\")),\"\")","v":""},{"$f":"IF(B32=\"X\",IF(AN32=\"DA\",IF(AU32<6,LEN(TRIM(U32))-LEN(SUBSTITUTE(U32,CHAR(44),\"\"))+1,0),\"-\"),\"\")","v":""},{"$f":"IF(B32=\"X\",IF(AN32=\"DA\",LEN(TRIM(U32))-LEN(SUBSTITUTE(U32,CHAR(44),\"\"))+1,\"-\"),\"\")","v":""},{"$f":"IF(B32=\"X\",IF(AN32=\"\",\"Afectat sau NU?\",IF(AN32=\"DA\",((AG32+AH32)-(AE32+AF32))*24,\"Nu a fost afectat producator/consumator\")),\"\")","v":""},{"$f":"IF(B32=\"X\",IF(AN32=\"DA\",IF(AX32>24,IF(BA32=\"NU\",0,LEN(TRIM(V32))-LEN(SUBSTITUTE(V32,CHAR(44),\"\"))+1),0),\"-\"),\"\")","v":""},{"$f":"IF(B32=\"X\",IF(AN32=\"DA\",IF(AX32>24,LEN(TRIM(V32))-LEN(SUBSTITUTE(V32,CHAR(44),\"\"))+1,0),\"-\"),\"\")","v":""},null,null,null,null,null,{"$f":"IF(C32=\"X\",IF(AN32=\"\",\"Afectat sau NU?\",IF(AN32=\"DA\",IF(AK32=\"\",\"Neinformat\",NETWORKDAYS(AK32+AL32,AE32+AF32,$BS$2:$BS$14)-2),\"Nu a fost afectat producator/consumator\")),\"\")","v":"Afectat sau NU?"},{"$f":"IF(C32=\"X\",IF(AN32=\"DA\",IF(AND(BF32>=5,AK32<>\"\"),LEN(TRIM(V32))-LEN(SUBSTITUTE(V32,CHAR(44),\"\"))+1,0),\"-\"),\"\")","v":"-"},{"$f":"IF(C32=\"X\",IF(AN32=\"DA\",LEN(TRIM(V32))-LEN(SUBSTITUTE(V32,CHAR(44),\"\"))+1,\"-\"),\"\")","v":"-"},{"$f":"IF(C32=\"X\",IF(AN32=\"\",\"Afectat sau NU?\",IF(AN32=\"DA\",IF(AI32=\"\",\"Neinformat\",NETWORKDAYS(AI32+AJ32,AE32+AF32,$BS$2:$BS$14)-2),\"Nu a fost afectat producator/consumator\")),\"\")","v":"Afectat sau NU?"},{"$f":"IF(C32=\"X\",IF(AN32=\"DA\",IF(AND(BI32>=5,AI32<>\"\"),LEN(TRIM(U32))-LEN(SUBSTITUTE(U32,CHAR(44),\"\"))+1,0),\"-\"),\"\")","v":"-"},{"$f":"IF(C32=\"X\",IF(AN32=\"DA\",LEN(TRIM(U32))-LEN(SUBSTITUTE(U32,CHAR(44),\"\"))+1,\"-\"),\"\")","v":"-"},{"$f":"IF(C32=\"X\",IF(AN32=\"\",\"Afectat sau NU?\",IF(AN32=\"DA\",((AG32+AH32)-(Z32+AA32))*24,\"Nu a fost afectat producator/consumator\")),\"\")","v":"Afectat sau NU?"},{"$f":"IF(C32=\"X\",IF(AN32<>\"DA\",\"-\",IF(AND(AN32=\"DA\",BL32<=0),LEN(TRIM(V32))-LEN(SUBSTITUTE(V32,CHAR(44),\"\"))+1+LEN(TRIM(U32))-LEN(SUBSTITUTE(U32,CHAR(44),\"\"))+1,0)),\"\")","v":"-"},{"$f":"IF(C32=\"X\",IF(AN32=\"DA\",LEN(TRIM(V32))-LEN(SUBSTITUTE(V32,CHAR(44),\"\"))+1+LEN(TRIM(U32))-LEN(SUBSTITUTE(U32,CHAR(44),\"\"))+1,\"-\"),\"\")","v":"-"}]
[18,"-","x","Conducta de transport gaze naturale SRM Timișoara I – SRM Timișoara III (inclusiv alimentare cu energie electrică, protecție catodică și fibră optică)",155252,"Timișoara","Timiș",202928.22,474518.16,202928.22,474518.16,"-","-","SM0895D0","SC Agro Imobiliare Timișoara","-","-","-","-","SM-CD001",null,"Agro Imobiliare","aprilie - iunie 2023",null,null,null,null,"Arad",null,null,null,null,null,null,null,null,null,null,null,null,null,"PMDI_2022_A3_8",null,"","","","","","","","","",null,null,null,null,null,"Afectat sau NU?","-","-","Afectat sau NU?","-","-","Afectat sau NU?","-","-"]
[19,"-","x","Conducta de transport gaze naturale SRM Timișoara I – SRM Timișoara III (inclusiv alimentare cu energie electrică, protecție catodică și fibră optică)",155252,"Timișoara","Timiș",203128.51,474110.73,203128.51,474110.73,"-","-","SM0342D0","SC IMP Romania Industrial Timișoara","-","-","-","-","SM-CD001",null,"IMP România Industrial","aprilie - iunie 2023",null,null,null,null,"Arad",null,null,null,null,null,null,null,null,null,null,null,null,null,"PMDI_2022_A3_8",null,"","","","","","","","","",null,null,null,null,null,"Afectat sau NU?","-","-","Afectat sau NU?","-","-","Afectat sau NU?","-","-"]
[20,"-","x","Conducta de transport gaze naturale SRM Timișoara I – SRM Timișoara III (inclusiv alimentare cu energie electrică, protecție catodică și fibră optică)",158724,"Utvin","Timiș",199343.46,475200,199343.46,475200,"-","-","SM1021D0","Utvin","-","-","-","-","SM-SD001",null,"Premier Energy","aprilie - iunie 2023",null,null,null,null,"Arad",null,null,null,null,null,null,null,null,null,null,null,null,null,"PMDI_2022_A3_8",null,"","","","","","","","","",null,null,null,null,null,"Afectat sau NU?","-","-","Afectat sau NU?","-","-","Afectat sau NU?","-","-"]
[21,"-","x","Conducta de transport gaze naturale SRM Timișoara I – SRM Timișoara III (inclusiv alimentare cu energie electrică, protecție catodică și fibră optică)",155252,"Timișoara","Timiș",201059.01,477033.06,201059.01,477033.06,"-","-","SM0338D0","Timișoara III","-","-","-","-","SM-SD001",null,"Delgaz Grid","aprilie - iunie 2023",null,null,null,null,"Arad",null,null,null,null,null,null,null,null,null,null,null,null,null,"PMDI_2022_A3_8",null,{"$f":"IF(B36=\"X\",IF(AN36=\"\",\"Afectat sau NU?\",IF(AN36=\"DA\",IF(((AK36+AL36)-(AE36+AF36))*24<-720,\"Neinformat\",((AK36+AL36)-(AE36+AF36))*24),\"Nu a fost afectat producator/consumator\")),\"\")","v":""},{"$f":"IF(B36=\"X\",IF(AN36=\"DA\",IF(AR36<6,LEN(TRIM(V36))-LEN(SUBSTITUTE(V36,CHAR(44),\"\"))+1,0),\"-\"),\"\")","v":""},{"$f":"IF(B36=\"X\",IF(AN36=\"DA\",LEN(TRIM(V36))-LEN(SUBSTITUTE(V36,CHAR(44),\"\"))+1,\"-\"),\"\")","v":""},{"$f":"IF(B36=\"X\",IF(AN36=\"\",\"Afectat sau NU?\",IF(AN36=\"DA\",IF(((AI36+AJ36)-(AE36+AF36))*24<-720,\"Neinformat\",((AI36+AJ36)-(AE36+AF36))*24),\"Nu a fost afectat producator/consumator\")),\"\")","v":""},{"$f":"IF(B36=\"X\",IF(AN36=\"DA\",IF(AU36<6,LEN(TRIM(U36))-LEN(SUBSTITUTE(U36,CHAR(44),\"\"))+1,0),\"-\"),\"\")","v":""},{"$f":"IF(B36=\"X\",IF(AN36=\"DA\",LEN(TRIM(U36))-LEN(SUBSTITUTE(U36,CHAR(44),\"\"))+1,\"-\"),\"\")","v":""},{"$f":"IF(B36=\"X\",IF(AN36=\"\",\"Afectat sau NU?\",IF(AN36=\"DA\",((AG36+AH36)-(AE36+AF36))*24,\"Nu a fost afectat producator/consumator\")),\"\")","v":""},{"$f":"IF(B36=\"X\",IF(AN36=\"DA\",IF(AX36>24,IF(BA36=\"NU\",0,LEN(TRIM(V36))-LEN(SUBSTITUTE(V36,CHAR(44),\"\"))+1),0),\"-\"),\"\")","v":""},{"$f":"IF(B36=\"X\",IF(AN36=\"DA\",IF(AX36>24,LEN(TRIM(V36))-LEN(SUBSTITUTE(V36,CHAR(44),\"\"))+1,0),\"-\"),\"\")","v":""},null,null,null,null,null,{"$f":"IF(C36=\"X\",IF(AN36=\"\",\"Afectat sau NU?\",IF(AN36=\"DA\",IF(AK36=\"\",\"Neinformat\",NETWORKDAYS(AK36+AL36,AE36+AF36,$BS$2:$BS$14)-2),\"Nu a fost afectat producator/consumator\")),\"\")","v":"Afectat sau NU?"},{"$f":"IF(C36=\"X\",IF(AN36=\"DA\",IF(AND(BF36>=5,AK36<>\"\"),LEN(TRIM(V36))-LEN(SUBSTITUTE(V36,CHAR(44),\"\"))+1,0),\"-\"),\"\")","v":"-"},{"$f":"IF(C36=\"X\",IF(AN36=\"DA\",LEN(TRIM(V36))-LEN(SUBSTITUTE(V36,CHAR(44),\"\"))+1,\"-\"),\"\")","v":"-"},{"$f":"IF(C36=\"X\",IF(AN36=\"\",\"Afectat sau NU?\",IF(AN36=\"DA\",IF(AI36=\"\",\"Neinformat\",NETWORKDAYS(AI36+AJ36,AE36+AF36,$BS$2:$BS$14)-2),\"Nu a fost afectat producator/consumator\")),\"\")","v":"Afectat sau NU?"},{"$f":"IF(C36=\"X\",IF(AN36=\"DA\",IF(AND(BI36>=5,AI36<>\"\"),LEN(TRIM(U36))-LEN(SUBSTITUTE(U36,CHAR(44),\"\"))+1,0),\"-\"),\"\")","v":"-"},{"$f":"IF(C36=\"X\",IF(AN36=\"DA\",LEN(TRIM(U36))-LEN(SUBSTITUTE(U36,CHAR(44),\"\"))+1,\"-\"),\"\")","v":"-"},{"$f":"IF(C36=\"X\",IF(AN36=\"\",\"Afectat sau NU?\",IF(AN36=\"DA\",((AG36+AH36)-(Z36+AA36))*24,\"Nu a fost afectat producator/consumator\")),\"\")","v":"Afectat sau NU?"},{"$f":"IF(C36=\"X\",IF(AN36<>\"DA\",\"-\",IF(AND(AN36=\"DA\",BL36<=0),LEN(TRIM(V36))-LEN(SUBSTITUTE(V36,CHAR(44),\"\"))+1+LEN(TRIM(U36))-LEN(SUBSTITUTE(U36,CHAR(44),\"\"))+1,0)),\"\")","v":"-"},{"$f":"IF(C36=\"X\",IF(AN36=\"DA\",LEN(TRIM(V36))-LEN(SUBSTITUTE(V36,CHAR(44),\"\"))+1+LEN(TRIM(U36))-LEN(SUBSTITUTE(U36,CHAR(44),\"\"))+1,\"-\"),\"\")","v":"-"}]
[22,"-","x","Conducta de transport gaze naturale SRM Timișoara I – SRM Timișoara III (inclusiv alimentare cu energie electrică, protecție catodică și fibră optică)",157353,"Săcălaz","Timiș",196586.45,479174.93,196586.45,479174.93,"-","-","SM1028D0","Săcălaz","-","-","-","-","SM-SD001",null,"Gaz Vest","aprilie - iunie 2023",null,null,null,null,"Arad",null,null,null,null,null,null,null,null,null,null,null,null,null,"PMDI_2022_A3_8",null,"","","","","","","","","",null,null,null,null,null,"Afectat sau NU?","-","-","Afectat sau NU?","-","-","Afectat sau NU?","-","-"]
[23,"-","x","Înlocuire subtraversare DJ, CF Centura București și CF Progresu a conductei de transport gaze naturale DN 700 Inel București, tronson Moara Domnească – Măgurele",101154,"Berceni","Ilfov",593357.13,315818.77,593357.13,315818.77,"-","-","SM0907D0","Berceni IF","-","-","-","-","SM-SD001",null,"Progaz","aprilie - iunie 2023",null,null,null,null,"București",null,null,null,null,null,null,null,null,null,null,null,null,null,"PMDI_2022_A3_12",null,"","","","","","","","","",null,null,null,null,null,"Afectat sau NU?","-","-","Afectat sau NU?","-","-","Afectat sau NU?","-","-"]
[{"$f":"SUM(1,A38)","v":24},"-","x","Înlocuire subtraversare DJ, CF Centura București și CF Progresu a conductei de transport gaze naturale DN 700 Inel București, tronson Moara Domnească – Măgurele",105945,"Vidra","Ilfov",588819.98,315459.76,588819.98,315459.76,"-","-","SM0152D0","Vidra","-","-","-","-","SM-SD001",null,"Distrigaz Sud Rețele","aprilie - iunie 2023",null,null,null,null,"București",null,null,null,null,null,null,null,null,null,null,null,null,null,"PMDI_2022_A3_12",null,"","","","","","","","","",null,null,null,null,null,"Afectat sau NU?","-","-","Afectat sau NU?","-","-","Afectat sau NU?","-","-"]
[25,"-","x","Înlocuire subtraversare DJ, CF Centura București și CF Progresu a conductei de transport gaze naturale DN 700 Inel București, tronson Moara Domnească – Măgurele",179392,"Jilava","Ilfov",586543.5,317539.43,586543.5,317539.43,"-","-","SM1051D0","Jilava","-","-","-","-","SM-SD001",null,"Distrigaz Sud Rețele","aprilie - iunie 2023",null,null,null,null,"București",null,null,null,null,null,null,null,null,null,null,null,null,null,"PMDI_2022_A3_12",null,"","","","","","","","","",null,null,null,null,null,"Afectat sau NU?","-","-","Afectat sau NU?","-","-","Afectat sau NU?","-","-"]
[26,"-","x","Înlocuire robinet 20” cuplare racord SRM Balotești",100978,"Balotești ","Ilfov",589605.26,346450.65,589605.26,346450.65,"-","-","SM0198D0","Balotești ","-","-","-","-","SM-SD001",null,"SC Megaconstruct SA","mai - septembrie 2023",null,null,null,null,"București",null,null,null,null,null,null,null,null,null,null,null,null,null,"Plan lucrări SM 2021, cap.A",null,"","","","","","","","","",null,null,null,null,null,"Afectat sau NU?","-","-","Afectat sau NU?","-","-","Afectat sau NU?","-","-"]
[27,"-","x","Înlocuire robinet 20” cuplare racord SRM Balotești",105179,"Snagov","Ilfov",589606.49,346458.63,589606.49,346458.63,"-","-","SM0922D0","Snagov","-","-","-","-","SM-SD001",null,"SC Premier Energy SRL","mai - septembrie 2023",null,null,null,null,"București",null,null,null,null,null,null,null,null,null,null,null,null,null,"Plan lucrări SM 2021, cap.A",null,"","","","","","","","","",null,null,null,null,null,"Afectat sau NU?","-","-","Afectat sau NU?","-","-","Afectat sau NU?","-","-"]
[28,"-","x","Înlocuire robinet 20” cuplare racord SRM Balotești",102179,"Corbeanca","Ilfov",582902.09,344014.84,582902.09,344014.84,"-","-","SM0148D0","Corbeanca","-","-","-","-","SM-SD001",null," Distrigaz Sud Rețele","mai - septembrie 2023",null,null,null,null,"București",null,null,null,null,null,null,null,null,null,null,null,null,null,"Plan lucrări SM 2021, cap.A",null,"","","","","","","","","",null,null,null,null,null,"Afectat sau NU?","-","-","Afectat sau NU?","-","-","Afectat sau NU?","-","-"]
[29,"-","x","Modernizare/Sistematizare instalație tehnologică SRM Tunari",105589,"Tunari","Ilfov",590859.85,338211.21,590859.85,338211.21,"-","-","SM0168D0","București Tunari","-","-","-","-","SM-SD001",null," Distrigaz Sud Rețele","mai - septembrie 2023",null,null,null,null,"București",null,null,null,null,null,null,null,null,null,null,null,null,null,"Plan lucrări SM 2021, cap.A",null,"","","","","","","","","",null,null,null,null,null,"Afectat sau NU?","-","-","Afectat sau NU?","-","-","Afectat sau NU?","-","-"]
[30,"-","x","Modernizare/Sistematizare instalație tehnologică SRM Tunari",105589,"Tunari","Ilfov",590859.85,338211.21,590859.85,338211.21,"-","-","SM0168D1","Cartier Pipera","-","-","-","-","SM-SD001",null,"SC Premier Energy SRL","mai - septembrie 2023",null,null,null,null,"București",null,null,null,null,null,null,null,null,null,null,null,null,null,"Plan lucrări SM 2021, cap.A",null,"","","","","","","","","",null,null,null,null,null,"Afectat sau NU?","-","-","Afectat sau NU?","-","-","Afectat sau NU?","-","-"]
[31,"-","x","Interconectare 32\" Moșu - Podișor cu 16\" Gura Șuții, zona Slobozia Moara și relocare Rv16 cu refulator.",68636,"Răcari","Dâmbovița",557141.14,348301.15,557141.14,348301.15,"-","-","SM0145D0","Răcari","-","-","-","-","SM-SD001",null," Distrigaz Sud Rețele","mai - septembrie 2023",null,null,null,null,"București",null,null,null,null,null,null,null,null,null,null,null,null,null,"Forțe proprii/SM",null,"","","","","","","","","",null,null,null,null,null,"Afectat sau NU?","-","-","Afectat sau NU?","-","-","Afectat sau NU?","-","-"]
[32,"-","x","Interconectare 32\" Moșu - Podișor cu 16\" Gura Șuții, zona Slobozia Moara și relocare Rv16 cu refulator.",105543,"Tărtășești","Dâmbovița",564729.06000000006,341811.75,564729.06000000006,341811.75,"-","-","SM0112D0","Tărtășești","-","-","-","-","SM-SD001",null,"SC Premier Energy SRL","mai - septembrie 2023",null,null,null,null,"București",null,null,null,null,null,null,null,null,null,null,null,null,null,"Forțe proprii/SM",null,"","","","","","","","","",null,null,null,null,null,"Afectat sau NU?","-","-","Afectat sau NU?","-","-","Afectat sau NU?","-","-"]
[33,"-","x","Interconectare 32\" Moșu - Podișor cu 16\" Gura Șuții, zona Slobozia Moara și relocare Rv16 cu refulator.",104038,"Săbăreni","Giurgiu",569107.28,334140.34999999998,569107.28,334140.34999999998,"-","-","SM1086D0","Joița","-","-","-","-","SM-SD001",null,"Euro Seven Industry","mai - septembrie 2023",null,null,null,null,"București",null,null,null,null,null,null,null,null,null,null,null,null,null,"Forțe proprii/SM",null,"","","","","","","","","",null,null,null,null,null,"Afectat sau NU?","-","-","Afectat sau NU?","-","-","Afectat sau NU?","-","-"]
[34,"-","x","Eliminare R7 pe conducta 28” Coroi - București, zona Posada",131381,"Posada","Prahova",548893.69999999995,420137.21,548893.69999999995,420137.21,"-","-","SM0081D0","Posada","-","-","-","-","SM-SD001",null,"Distrigaz Sud Rețele","mai - septembrie 2023",null,null,null,null,"București",null,null,null,null,null,null,null,null,null,null,null,null,null,"Plan lucrări SM 2021, cap.A + forțe proprii",null,"","","","","","","","","",null,null,null,null,null,"Afectat sau NU?","-","-","Afectat sau NU?","-","-","Afectat sau NU?","-","-"]
[35,"-","x","Înlocuire flanșă electroizolantă pe conducta 4” racord SRM Cornești II Crivățu",67069,"Crivățu","Dâmbovița",571928,361161.04,571928,361161.04,"-","-","SM0908D0","Cornești 2 Crivățu","-","-","-","-","SM-SD001",null,"Distrigaz Sud Rețele","mai - septembrie 2023",null,null,null,null,"București",null,null,null,null,null,null,null,null,null,null,null,null,null,"Forțe proprii",null,"","","","","","","","","",null,null,null,null,null,"Afectat sau NU?","-","-","Afectat sau NU?","-","-","Afectat sau NU?","-","-"]
[36,"-","x","Înlocuire instalație mecanică la SRM Finta",67489,"Finta","Dâmbovița",563895,366569.11,563895,366569.11,"-","-","SM0141D0","Finta","-","-","-","-","SM-SD001",null,"Distrigaz Sud Rețele","mai - septembrie 2023",null,null,null,null,"București",null,null,null,null,null,null,null,null,null,null,null,null,null,"Forțe proprii",null,"","","","","","","","","",null,null,null,null,null,"Afectat sau NU?","-","-","Afectat sau NU?","-","-","Afectat sau NU?","-","-"]
[37,"-","x","Înlocuire flansă electroizolantă pe racord SRM Vidra",105945,"Vidra","Ilfov",588819.98,315459.76,588819.98,315459.76,"-","-","SM0152D0","Vidra","-","-","-","-","SM-SD001",null,"Distrigaz Sud Rețele","mai - septembrie 2023",null,null,null,null,"București",null,null,null,null,null,null,null,null,null,null,null,null,null,"Forțe proprii",null,"","","","","","","","","",null,null,null,null,null,"Afectat sau NU?","-","-","Afectat sau NU?","-","-","Afectat sau NU?","-","-"]